[Event "Titled Tuesday Blitz May 16 Early 2023"]
[White "Kravtsiv, Martyn"]
[Black "Makarian, Rudik"]
[WhiteFideId "14113147"]
[BlackFideId "44105681"]
[WhiteElo "2695"]
[BlackElo "2461"]
[Result "0-1"]
[Round "09"]
[TimeControl "180+2"]
[Date "2023.05.16"]
[WhiteClock "0:00:00"]
[BlackClock "0:00:04"]

1. e4 {[%clk 0:03:00]}  c5 {[%clk 0:02:59]} 2. Nf3 {[%clk 0:03:00]}  Nc6 {[%clk 0:02:59]} 3. d4 {[%clk 0:03:00]}  cxd4 {[%clk 0:03:00]} 4. Nxd4 {[%clk 0:03:01]}  e6 {[%clk 0:03:01]} 5. Nc3 {[%clk 0:03:01]}  a6 {[%clk 0:03:00]} 6. Be2 {[%clk 0:02:58]}  Qc7 {[%clk 0:03:00]} 7. O-O {[%clk 0:02:56]}  Nf6 {[%clk 0:02:59]} 8. Be3 {[%clk 0:02:55]}  Be7 {[%clk 0:02:59]} 9. f4 {[%clk 0:02:55]}  d6 {[%clk 0:02:59]} 10. Qe1 {[%clk 0:02:54]}  O-O {[%clk 0:02:59]} 11. Qg3 {[%clk 0:02:54]}  Nxd4 {[%clk 0:02:59]} 12. Bxd4 {[%clk 0:02:52]}  b5 {[%clk 0:03:00]} 13. Kh1 {[%clk 0:02:45]}  Bb7 {[%clk 0:03:00]} 14. a3 {[%clk 0:02:45]}  Rac8 {[%clk 0:02:59]} 15. Rae1 {[%clk 0:02:43]}  Bc6 {[%clk 0:02:59]} 16. Bd3 {[%clk 0:02:42]}  e5 {[%clk 0:02:52]} 17. fxe5 {[%clk 0:02:19]}  Nh5 {[%clk 0:02:52]} 18. Qg4 {[%clk 0:02:19]}  dxe5 {[%clk 0:02:53]} 19. Qxh5 {[%clk 0:02:13]}  exd4 {[%clk 0:02:53]} 20. Nd5 {[%clk 0:02:13]}  Bxd5 {[%clk 0:02:52]} 21. exd5 {[%clk 0:02:10]}  g6 {[%clk 0:02:48]} 22. Qf3 {[%clk 0:02:10]}  Bd6 {[%clk 0:02:40]} 23. g3 {[%clk 0:02:06]}  Rce8 {[%clk 0:02:40]} 24. Kg2 {[%clk 0:02:05]}  Be5 {[%clk 0:02:24]} 25. Re2 {[%clk 0:02:01]}  Re7 {[%clk 0:02:20]} 26. a4 {[%clk 0:01:52]}  bxa4 {[%clk 0:02:14]} 27. Bxa6 {[%clk 0:01:52]}  d3 {[%clk 0:01:56]} 28. cxd3 {[%clk 0:01:47]}  Rb8 {[%clk 0:01:47]} 29. Rff2 {[%clk 0:01:26]}  Bd4 {[%clk 0:01:25]} 30. Rxe7 {[%clk 0:01:08]}  Qxe7 {[%clk 0:01:26]} 31. Re2 {[%clk 0:01:08]}  Qxe2+ {[%clk 0:00:50]} 32. Qxe2 {[%clk 0:01:07]}  Rxb2 {[%clk 0:00:51]} 33. Qxb2 {[%clk 0:01:06]}  Bxb2 {[%clk 0:00:52]} 34. d6 {[%clk 0:01:05]}  Kf8 {[%clk 0:00:52]} 35. Bc4 {[%clk 0:01:03]}  f6 {[%clk 0:00:50]} 36. Kf3 {[%clk 0:01:02]}  Be5 {[%clk 0:00:46]} 37. d7 {[%clk 0:00:56]}  Ke7 {[%clk 0:00:46]} 38. h4 {[%clk 0:00:25]}  a3 {[%clk 0:00:42]} 39. g4 {[%clk 0:00:25]}  Kxd7 {[%clk 0:00:42]} 40. h5 {[%clk 0:00:24]}  Kd6 {[%clk 0:00:36]} 41. hxg6 {[%clk 0:00:23]}  hxg6 {[%clk 0:00:36]} 42. Bf7 {[%clk 0:00:14]}  Ke7 {[%clk 0:00:17]} 43. Ba2 {[%clk 0:00:13]}  Kd6 {[%clk 0:00:18]} 44. Ke4 {[%clk 0:00:10]}  Ke7 {[%clk 0:00:09]} 45. g5 {[%clk 0:00:09]}  Bd6 {[%clk 0:00:08]} 46. gxf6+ {[%clk 0:00:08]}  Kxf6 {[%clk 0:00:09]} 47. d4 {[%clk 0:00:07]}  g5 {[%clk 0:00:08]} 48. Kf3 {[%clk 0:00:06]}  Kf5 {[%clk 0:00:05]} 49. Bb1+ {[%clk 0:00:06]}  Ke6 {[%clk 0:00:05]} 50. Ba2+ {[%clk 0:00:07]}  Kf6 {[%clk 0:00:05]} 51. Kg4 {[%clk 0:00:06]}  Be7 {[%clk 0:00:05]} 52. d5 {[%clk 0:00:06]}  Ke5 {[%clk 0:00:05]} 53. Bb3 {[%clk 0:00:07]}  Kd6 {[%clk 0:00:04]} 54. Ba2 {[%clk 0:00:08]}  Bd8 {[%clk 0:00:02]} 55. Kf5 {[%clk 0:00:08]}  Kc5 {[%clk 0:00:02]} 56. Kg4 {[%clk 0:00:09]}  Kd4 {[%clk 0:00:02]} 57. Kf5 {[%clk 0:00:07]}  Kc3 {[%clk 0:00:03]} 58. d6 {[%clk 0:00:07]}  Kb2 {[%clk 0:00:03]} 59. Bd5 {[%clk 0:00:07]}  a2 {[%clk 0:00:03]} 60. Bxa2 {[%clk 0:00:07]}  Kxa2 {[%clk 0:00:04]} 61. Ke4 {[%clk 0:00:00]}  Kb3 {[%clk 0:00:04]} 0-1


[Site "https://www.chess.com"]

[Event "Titled Tuesday Blitz May 16 Early 2023"]
[White "Drygalov, Sergey"]
[Black "Priasmoro, Novendra"]
[WhiteFideId "24171743"]
[BlackFideId "7105029"]
[WhiteElo "2533"]
[BlackElo "2412"]
[Result "1-0"]
[Round "09"]
[TimeControl "180+2"]
[Date "2023.05.16"]
[WhiteClock "0:01:33"]
[BlackClock "0:00:04"]

1. d4 {[%clk 0:02:59]}  Nf6 {[%clk 0:02:54]} 2. c4 {[%clk 0:02:59]}  g6 {[%clk 0:02:51]} 3. Nc3 {[%clk 0:02:59]}  Bg7 {[%clk 0:02:50]} 4. e4 {[%clk 0:02:59]}  d6 {[%clk 0:02:49]} 5. Nf3 {[%clk 0:02:59]}  O-O {[%clk 0:02:48]} 6. Be2 {[%clk 0:03:00]}  e5 {[%clk 0:02:45]} 7. O-O {[%clk 0:03:00]}  Nbd7 {[%clk 0:02:38]} 8. Be3 {[%clk 0:02:59]}  Ng4 {[%clk 0:02:35]} 9. Bg5 {[%clk 0:02:59]}  f6 {[%clk 0:02:31]} 10. Bd2 {[%clk 0:02:59]}  Nh6 {[%clk 0:02:19]} 11. b4 {[%clk 0:02:56]}  c6 {[%clk 0:02:09]} 12. Rb1 {[%clk 0:02:51]}  f5 {[%clk 0:02:05]} 13. dxe5 {[%clk 0:02:49]}  Nxe5 {[%clk 0:02:03]} 14. Nxe5 {[%clk 0:02:21]}  dxe5 {[%clk 0:02:04]} 15. exf5 {[%clk 0:02:20]}  gxf5 {[%clk 0:01:52]} 16. b5 {[%clk 0:02:13]}  Be6 {[%clk 0:01:43]} 17. Na4 {[%clk 0:01:59]}  Qh4 {[%clk 0:00:48]} 18. Nc5 {[%clk 0:01:55]}  Bxc4 {[%clk 0:00:38]} 19. bxc6 {[%clk 0:01:54]}  Bxe2 {[%clk 0:00:32]} 20. Qxe2 {[%clk 0:01:50]}  bxc6 {[%clk 0:00:25]} 21. Rb7 {[%clk 0:01:45]}  Rf7 {[%clk 0:00:22]} 22. Bxh6 {[%clk 0:01:37]}  Rxb7 {[%clk 0:00:19]} 23. Nxb7 {[%clk 0:01:37]}  Qxh6 {[%clk 0:00:18]} 24. Rd1 {[%clk 0:01:34]}  e4 {[%clk 0:00:19]} 25. Qc4+ {[%clk 0:01:34]}  Kh8 {[%clk 0:00:18]} 26. Nd6 {[%clk 0:01:34]}  Rf8 {[%clk 0:00:04]} 27. Nf7+ {[%clk 0:01:33]} 1-0


[Site "https://www.chess.com"]

[Event "Titled Tuesday Blitz May 16 Early 2023"]
[White "Kamsky, Gata"]
[Black "Simonian, Hrair"]
[WhiteFideId "2000024"]
[BlackFideId "13302337"]
[WhiteElo "2660"]
[BlackElo "2447"]
[Result "1-0"]
[Round "09"]
[TimeControl "180+2"]
[Date "2023.05.16"]
[WhiteClock "0:00:58"]
[BlackClock "0:00:04"]

1. e4 {[%clk 0:03:00]}  c5 {[%clk 0:02:59]} 2. Nf3 {[%clk 0:02:58]}  d6 {[%clk 0:02:59]} 3. d4 {[%clk 0:02:57]}  cxd4 {[%clk 0:03:00]} 4. Nxd4 {[%clk 0:02:57]}  Nf6 {[%clk 0:02:58]} 5. Nc3 {[%clk 0:02:56]}  a6 {[%clk 0:02:57]} 6. a4 {[%clk 0:02:56]}  e5 {[%clk 0:02:56]} 7. Nf3 {[%clk 0:02:55]}  Be6 {[%clk 0:02:54]} 8. Ng5 {[%clk 0:02:54]}  Nc6 {[%clk 0:02:31]} 9. Nxe6 {[%clk 0:02:48]}  fxe6 {[%clk 0:02:32]} 10. g3 {[%clk 0:02:41]}  d5 {[%clk 0:02:25]} 11. exd5 {[%clk 0:02:32]}  exd5 {[%clk 0:02:26]} 12. Bg2 {[%clk 0:02:30]}  Bb4 {[%clk 0:02:25]} 13. O-O {[%clk 0:02:29]}  Bxc3 {[%clk 0:02:23]} 14. bxc3 {[%clk 0:02:29]}  O-O {[%clk 0:02:23]} 15. Bg5 {[%clk 0:02:28]}  e4 {[%clk 0:02:23]} 16. Rb1 {[%clk 0:02:15]}  b6 {[%clk 0:01:52]} 17. c4 {[%clk 0:02:04]}  dxc4 {[%clk 0:01:46]} 18. Qxd8 {[%clk 0:02:00]}  Raxd8 {[%clk 0:01:47]} 19. Rxb6 {[%clk 0:01:56]}  Nd4 {[%clk 0:01:45]} 20. Bxf6 {[%clk 0:01:55]}  Rxf6 {[%clk 0:01:44]} 21. Rxf6 {[%clk 0:01:53]}  gxf6 {[%clk 0:01:45]} 22. Bxe4 {[%clk 0:01:51]}  f5 {[%clk 0:01:14]} 23. Bb7 {[%clk 0:01:49]}  Rd6 {[%clk 0:01:14]} 24. a5 {[%clk 0:01:37]}  Nxc2 {[%clk 0:01:12]} 25. Rc1 {[%clk 0:01:36]}  Na3 {[%clk 0:00:19]} 26. Rc3 {[%clk 0:01:33]}  Rd1+ {[%clk 0:00:19]} 27. Kg2 {[%clk 0:01:32]}  Ra1 {[%clk 0:00:20]} 28. Bxa6 {[%clk 0:01:29]}  Kg7 {[%clk 0:00:20]} 29. Bc8 {[%clk 0:01:14]}  Kf6 {[%clk 0:00:16]} 30. a6 {[%clk 0:01:14]}  h6 {[%clk 0:00:12]} 31. Bd7 {[%clk 0:01:09]}  Nb1 {[%clk 0:00:11]} 32. Rc1 {[%clk 0:01:07]}  c3 {[%clk 0:00:10]} 33. Bb5 {[%clk 0:01:00]}  c2 {[%clk 0:00:10]} 34. Rxc2 {[%clk 0:00:58]}  Na3 {[%clk 0:00:08]} 35. Rc6+ {[%clk 0:00:58]}  Ke5 {[%clk 0:00:04]} 36. Bd3 {[%clk 0:00:58]} 1-0


[Site "https://www.chess.com"]

[Event "Titled Tuesday Blitz May 16 Early 2023"]
[White "Pacan-Milej, Kosma"]
[Black "Pichot, Alan"]
[WhiteFideId "21800537"]
[BlackFideId "110973"]
[WhiteElo "2302"]
[BlackElo "2573"]
[Result "0-1"]
[Round "09"]
[TimeControl "180+2"]
[Date "2023.05.16"]
[WhiteClock "0:00:05"]
[BlackClock "0:00:11"]

1. d4 {[%clk 0:02:59]}  Nf6 {[%clk 0:02:59]} 2. c4 {[%clk 0:02:59]}  e6 {[%clk 0:03:00]} 3. Nc3 {[%clk 0:02:57]}  Bb4 {[%clk 0:03:00]} 4. e3 {[%clk 0:02:57]}  O-O {[%clk 0:03:00]} 5. Bd3 {[%clk 0:02:58]}  d5 {[%clk 0:03:00]} 6. a3 {[%clk 0:02:58]}  Bxc3+ {[%clk 0:03:00]} 7. bxc3 {[%clk 0:02:59]}  c6 {[%clk 0:03:00]} 8. cxd5 {[%clk 0:02:58]}  cxd5 {[%clk 0:03:01]} 9. Ne2 {[%clk 0:02:57]}  b6 {[%clk 0:03:01]} 10. O-O {[%clk 0:02:57]}  Ba6 {[%clk 0:03:01]} 11. f3 {[%clk 0:02:57]}  Qc8 {[%clk 0:02:53]} 12. e4 {[%clk 0:02:54]}  Bxd3 {[%clk 0:02:46]} 13. Qxd3 {[%clk 0:02:53]}  Qa6 {[%clk 0:02:47]} 14. Qe3 {[%clk 0:02:53]}  Nc6 {[%clk 0:02:43]} 15. e5 {[%clk 0:02:53]}  Nd7 {[%clk 0:02:44]} 16. Ng3 {[%clk 0:02:53]}  Rac8 {[%clk 0:02:33]} 17. Nh5 {[%clk 0:02:48]}  Ne7 {[%clk 0:02:34]} 18. Bd2 {[%clk 0:01:51]}  Qa4 {[%clk 0:02:14]} 19. f4 {[%clk 0:01:42]}  Qc2 {[%clk 0:02:11]} 20. g4 {[%clk 0:01:08]}  Qg6 {[%clk 0:01:21]} 21. Qg3 {[%clk 0:00:44]}  b5 {[%clk 0:01:10]} 22. Rf2 {[%clk 0:00:32]}  a6 {[%clk 0:00:52]} 23. Rg2 {[%clk 0:00:32]}  f5 {[%clk 0:00:28]} 24. exf6 {[%clk 0:00:21]}  Nxf6 {[%clk 0:00:28]} 25. f5 {[%clk 0:00:19]}  Nxh5 {[%clk 0:00:26]} 26. fxg6 {[%clk 0:00:14]}  Nxg3 {[%clk 0:00:27]} 27. gxh7+ {[%clk 0:00:14]}  Kxh7 {[%clk 0:00:27]} 28. Rxg3 {[%clk 0:00:15]}  Nc6 {[%clk 0:00:17]} 29. Re1 {[%clk 0:00:15]}  Rce8 {[%clk 0:00:18]} 30. Rge3 {[%clk 0:00:09]}  Rf6 {[%clk 0:00:14]} 31. g5 {[%clk 0:00:08]}  Rg6 {[%clk 0:00:11]} 32. h4 {[%clk 0:00:08]}  e5 {[%clk 0:00:12]} 33. dxe5 {[%clk 0:00:07]}  Rge6 {[%clk 0:00:12]} 34. Kg2 {[%clk 0:00:04]}  Nxe5 {[%clk 0:00:11]} 35. R3e2 {[%clk 0:00:04]}  Kg6 {[%clk 0:00:06]} 36. Bf4 {[%clk 0:00:03]}  Kf5 {[%clk 0:00:05]} 37. Rxe5+ {[%clk 0:00:03]}  Rxe5 {[%clk 0:00:06]} 38. Bxe5 {[%clk 0:00:03]}  Rxe5 {[%clk 0:00:06]} 39. Rxe5+ {[%clk 0:00:04]}  Kxe5 {[%clk 0:00:07]} 40. Kf3 {[%clk 0:00:04]}  Kf5 {[%clk 0:00:07]} 41. Ke3 {[%clk 0:00:03]}  Kg4 {[%clk 0:00:07]} 42. Kd4 {[%clk 0:00:03]}  Kxh4 {[%clk 0:00:08]} 43. g6 {[%clk 0:00:03]}  Kg5 {[%clk 0:00:07]} 44. Kxd5 {[%clk 0:00:04]}  Kxg6 {[%clk 0:00:08]} 45. c4 {[%clk 0:00:02]}  bxc4 {[%clk 0:00:08]} 46. Kxc4 {[%clk 0:00:03]}  Kf6 {[%clk 0:00:08]} 47. a4 {[%clk 0:00:04]}  g5 {[%clk 0:00:08]} 48. Kc5 {[%clk 0:00:05]}  g4 {[%clk 0:00:08]} 49. Kb6 {[%clk 0:00:06]}  g3 {[%clk 0:00:09]} 50. Kxa6 {[%clk 0:00:06]}  g2 {[%clk 0:00:10]} 51. a5 {[%clk 0:00:07]}  g1=Q {[%clk 0:00:11]} 52. Kb7 {[%clk 0:00:05]}  Qg2+ {[%clk 0:00:11]} 0-1


[Site "https://www.chess.com"]

[Event "Titled Tuesday Blitz May 16 Early 2023"]
[White "Orlov, Georgi"]
[Black "Bortnyk, Olexandr"]
[WhiteFideId "2011271"]
[BlackFideId "14120828"]
[WhiteElo "2647"]
[BlackElo "2734"]
[Result "0-1"]
[Round "09"]
[TimeControl "180+2"]
[Date "2023.05.16"]
[WhiteClock "0:00:56"]
[BlackClock "0:00:41"]

1. d4 {[%clk 0:03:00]}  d6 {[%clk 0:02:50]} 2. e4 {[%clk 0:02:57]}  Nf6 {[%clk 0:02:50]} 3. Nc3 {[%clk 0:02:57]}  Nbd7 {[%clk 0:02:50]} 4. Bc4 {[%clk 0:02:53]}  c6 {[%clk 0:02:47]} 5. Qe2 {[%clk 0:02:51]}  e5 {[%clk 0:02:47]} 6. Nf3 {[%clk 0:02:44]}  Be7 {[%clk 0:02:44]} 7. a4 {[%clk 0:02:40]}  O-O {[%clk 0:02:43]} 8. O-O {[%clk 0:02:33]}  a5 {[%clk 0:02:37]} 9. h3 {[%clk 0:02:24]}  exd4 {[%clk 0:02:26]} 10. Nxd4 {[%clk 0:02:24]}  Nc5 {[%clk 0:02:14]} 11. Rd1 {[%clk 0:02:09]}  Qb6 {[%clk 0:02:06]} 12. b3 {[%clk 0:02:07]}  Be6 {[%clk 0:01:49]} 13. Bg5 {[%clk 0:01:57]}  Rae8 {[%clk 0:01:38]} 14. Nxe6 {[%clk 0:01:42]}  fxe6 {[%clk 0:01:26]} 15. e5 {[%clk 0:01:33]}  Nd5 {[%clk 0:01:12]} 16. Nxd5 {[%clk 0:01:32]}  exd5 {[%clk 0:01:11]} 17. Bxe7 {[%clk 0:01:25]}  Rxe7 {[%clk 0:01:12]} 18. Bd3 {[%clk 0:01:21]}  Rxe5 {[%clk 0:00:52]} 19. Qf1 {[%clk 0:01:19]}  Ne6 {[%clk 0:00:48]} 20. Re1 {[%clk 0:01:13]}  Nf4 {[%clk 0:00:45]} 21. h4 {[%clk 0:01:03]}  Qd4 {[%clk 0:00:41]} 22. g3 {[%clk 0:01:00]}  Nh3+ {[%clk 0:00:40]} 23. Qxh3 {[%clk 0:00:59]}  Qxf2+ {[%clk 0:00:40]} 24. Kh1 {[%clk 0:00:56]}  Rxe1+ {[%clk 0:00:41]} 0-1


[Site "https://www.chess.com"]

[Event "Titled Tuesday Blitz May 16 Early 2023"]
[White "Harsh Suresh"]
[Black "Sarana, Alexey"]
[WhiteFideId "45018464"]
[BlackFideId "24133795"]
[WhiteElo "2209"]
[BlackElo "2714"]
[Result "0-1"]
[Round "09"]
[TimeControl "180+2"]
[Date "2023.05.16"]
[WhiteClock "0:00:09"]
[BlackClock "0:00:26"]

1. b3 {[%clk 0:03:00]}  e5 {[%clk 0:02:58]} 2. Bb2 {[%clk 0:03:00]}  Nc6 {[%clk 0:02:58]} 3. e3 {[%clk 0:03:00]}  Nf6 {[%clk 0:02:56]} 4. Nf3 {[%clk 0:03:00]}  Bd6 {[%clk 0:02:53]} 5. Na3 {[%clk 0:02:58]}  e4 {[%clk 0:02:46]} 6. Ng1 {[%clk 0:02:53]}  Be5 {[%clk 0:02:43]} 7. Bxe5 {[%clk 0:02:49]}  Nxe5 {[%clk 0:02:44]} 8. Nc4 {[%clk 0:02:49]}  Qe7 {[%clk 0:02:44]} 9. d4 {[%clk 0:02:34]}  exd3 {[%clk 0:02:42]} 10. Bxd3 {[%clk 0:02:34]}  Nxc4 {[%clk 0:01:49]} 11. Bxc4 {[%clk 0:02:32]}  O-O {[%clk 0:01:47]} 12. Nf3 {[%clk 0:02:27]}  d5 {[%clk 0:01:46]} 13. Bd3 {[%clk 0:02:24]}  Bg4 {[%clk 0:01:46]} 14. h3 {[%clk 0:02:15]}  Bh5 {[%clk 0:01:46]} 15. O-O {[%clk 0:02:13]}  Ne4 {[%clk 0:01:46]} 16. g4 {[%clk 0:01:47]}  Bg6 {[%clk 0:01:46]} 17. Nd4 {[%clk 0:01:47]}  Qh4 {[%clk 0:01:40]} 18. Kg2 {[%clk 0:01:43]}  Rae8 {[%clk 0:01:16]} 19. Nf3 {[%clk 0:01:31]}  Qf6 {[%clk 0:01:14]} 20. c4 {[%clk 0:01:27]}  dxc4 {[%clk 0:01:07]} 21. bxc4 {[%clk 0:01:27]}  Rd8 {[%clk 0:01:01]} 22. Qc2 {[%clk 0:01:15]}  Ng5 {[%clk 0:01:01]} 23. Bf5 {[%clk 0:01:08]}  Qc6 {[%clk 0:00:36]} 24. e4 {[%clk 0:00:40]}  Nxf3 {[%clk 0:00:36]} 25. Kxf3 {[%clk 0:00:39]}  Rd4 {[%clk 0:00:37]} 26. Rac1 {[%clk 0:00:34]}  Re8 {[%clk 0:00:35]} 27. Rfd1 {[%clk 0:00:27]}  Rdxe4 {[%clk 0:00:28]} 28. Rd5 {[%clk 0:00:17]}  Bxf5 {[%clk 0:00:27]} 29. gxf5 {[%clk 0:00:17]}  Qh6 {[%clk 0:00:27]} 30. Qxe4 {[%clk 0:00:13]}  Qxh3+ {[%clk 0:00:27]} 31. Ke2 {[%clk 0:00:12]}  Rxe4+ {[%clk 0:00:26]} 32. Kd2 {[%clk 0:00:09]}  h6 {[%clk 0:00:26]} 0-1


[Site "https://www.chess.com"]

[Event "Titled Tuesday Blitz May 16 Early 2023"]
[White "Nguyen, Ngoc Truong Son"]
[Black "Karthik Rajaa"]
[WhiteFideId "12401110"]
[BlackFideId "25035215"]
[WhiteElo "2556"]
[BlackElo "2215"]
[Result "1-0"]
[Round "09"]
[TimeControl "180+2"]
[Date "2023.05.16"]
[WhiteClock "0:00:07"]
[BlackClock "0:00:05"]

1. d4 {[%clk 0:02:57]}  Nf6 {[%clk 0:03:00]} 2. Nf3 {[%clk 0:02:58]}  g6 {[%clk 0:02:59]} 3. Nc3 {[%clk 0:02:57]}  d5 {[%clk 0:02:58]} 4. Bf4 {[%clk 0:02:57]}  Bg7 {[%clk 0:02:58]} 5. Nb5 {[%clk 0:02:58]}  Na6 {[%clk 0:02:59]} 6. e3 {[%clk 0:02:58]}  c6 {[%clk 0:02:56]} 7. Na3 {[%clk 0:02:56]}  O-O {[%clk 0:02:47]} 8. c3 {[%clk 0:02:52]}  Nh5 {[%clk 0:02:43]} 9. Bg3 {[%clk 0:02:41]}  Nc7 {[%clk 0:02:35]} 10. Be2 {[%clk 0:02:35]}  Nxg3 {[%clk 0:02:35]} 11. hxg3 {[%clk 0:02:36]}  f6 {[%clk 0:02:33]} 12. Nc2 {[%clk 0:02:12]}  e5 {[%clk 0:02:30]} 13. dxe5 {[%clk 0:02:13]}  fxe5 {[%clk 0:02:31]} 14. e4 {[%clk 0:02:13]}  Be6 {[%clk 0:01:59]} 15. Qd2 {[%clk 0:02:09]}  h6 {[%clk 0:01:34]} 16. Bd3 {[%clk 0:02:06]}  Qf6 {[%clk 0:01:29]} 17. O-O-O {[%clk 0:01:55]}  Rad8 {[%clk 0:01:28]} 18. Qe3 {[%clk 0:01:47]}  dxe4 {[%clk 0:01:12]} 19. Bxe4 {[%clk 0:01:47]}  Nd5 {[%clk 0:01:12]} 20. Qxa7 {[%clk 0:01:41]}  Bf5 {[%clk 0:01:13]} 21. Rde1 {[%clk 0:01:20]}  Ra8 {[%clk 0:01:06]} 22. Qc5 {[%clk 0:01:16]}  Bxe4 {[%clk 0:00:31]} 23. Rxe4 {[%clk 0:01:15]}  Qf5 {[%clk 0:00:28]} 24. Rhe1 {[%clk 0:01:13]}  Rxa2 {[%clk 0:00:26]} 25. Nxe5 {[%clk 0:00:33]}  Qxf2 {[%clk 0:00:16]} 26. Qxf2 {[%clk 0:00:33]}  Rxf2 {[%clk 0:00:17]} 27. R4e2 {[%clk 0:00:21]}  Rxe2 {[%clk 0:00:13]} 28. Rxe2 {[%clk 0:00:22]}  g5 {[%clk 0:00:13]} 29. Nc4 {[%clk 0:00:14]}  Ra8 {[%clk 0:00:12]} 30. Nd6 {[%clk 0:00:14]}  b5 {[%clk 0:00:12]} 31. Nf5 {[%clk 0:00:14]}  Bf8 {[%clk 0:00:12]} 32. g4 {[%clk 0:00:13]}  Nf4 {[%clk 0:00:11]} 33. Rd2 {[%clk 0:00:13]}  Re8 {[%clk 0:00:10]} 34. g3 {[%clk 0:00:12]}  Ng6 {[%clk 0:00:08]} 35. Ncd4 {[%clk 0:00:10]}  Ne5 {[%clk 0:00:08]} 36. Re2 {[%clk 0:00:10]}  Nd3+ {[%clk 0:00:08]} 37. Kc2 {[%clk 0:00:09]}  Rxe2+ {[%clk 0:00:08]} 38. Nxe2 {[%clk 0:00:10]}  Ne5 {[%clk 0:00:09]} 39. Ned4 {[%clk 0:00:10]}  Kf7 {[%clk 0:00:05]} 40. Ne3 {[%clk 0:00:08]}  Kf6 {[%clk 0:00:05]} 41. b4 {[%clk 0:00:07]}  Bd6 {[%clk 0:00:05]} 42. Kd2 {[%clk 0:00:04]}  Be7 {[%clk 0:00:05]} 43. Ke2 {[%clk 0:00:04]}  Bd8 {[%clk 0:00:05]} 44. Nf3 {[%clk 0:00:03]}  Bb6 {[%clk 0:00:04]} 45. Nxe5 {[%clk 0:00:03]}  Kxe5 {[%clk 0:00:05]} 46. Nf5 {[%clk 0:00:03]}  Bc7 {[%clk 0:00:04]} 47. Nxh6 {[%clk 0:00:03]}  Ke4 {[%clk 0:00:05]} 48. Nf7 {[%clk 0:00:04]}  Bxg3 {[%clk 0:00:04]} 49. Nxg5+ {[%clk 0:00:04]}  Kd5 {[%clk 0:00:05]} 50. Kd3 {[%clk 0:00:04]}  Be5 {[%clk 0:00:05]} 51. Ne4 {[%clk 0:00:04]}  Bg7 {[%clk 0:00:05]} 52. g5 {[%clk 0:00:05]}  Ke5 {[%clk 0:00:06]} 53. Nc5 {[%clk 0:00:05]}  Kd5 {[%clk 0:00:06]} 54. g6 {[%clk 0:00:04]}  Bf6 {[%clk 0:00:05]} 55. Nd7 {[%clk 0:00:05]}  Bg7 {[%clk 0:00:06]} 56. Nc5 {[%clk 0:00:05]}  Bf6 {[%clk 0:00:06]} 57. Ne4 {[%clk 0:00:05]}  Bg7 {[%clk 0:00:06]} 58. Ng3 {[%clk 0:00:05]}  Ke5 {[%clk 0:00:06]} 59. Nh5 {[%clk 0:00:05]}  Bh8 {[%clk 0:00:05]} 60. g7 {[%clk 0:00:06]}  Bxg7 {[%clk 0:00:05]} 61. Nxg7 {[%clk 0:00:07]}  Kd5 {[%clk 0:00:06]} 62. Nf5 {[%clk 0:00:06]}  c5 {[%clk 0:00:07]} 63. Ne3+ {[%clk 0:00:07]}  Kd6 {[%clk 0:00:06]} 64. Ke4 {[%clk 0:00:07]}  Kc6 {[%clk 0:00:06]} 65. Ke5 {[%clk 0:00:07]}  cxb4 {[%clk 0:00:05]} 66. cxb4 {[%clk 0:00:07]} 1-0


[Site "https://www.chess.com"]

[Event "Titled Tuesday Blitz May 16 Early 2023"]
[White "Cherniaiev, Tykhon"]
[Black "Quesada Perez, Yuniesky"]
[WhiteFideId "14182360"]
[BlackFideId "3504409"]
[WhiteElo "2450"]
[BlackElo "2585"]
[Result "0-1"]
[Round "09"]
[TimeControl "180+2"]
[Date "2023.05.16"]
[WhiteClock "0:00:00"]
[BlackClock "0:01:06"]

1. Nf3 {[%clk 0:03:00]}  d5 {[%clk 0:02:59]} 2. d4 {[%clk 0:03:01]}  Nf6 {[%clk 0:02:59]} 3. c4 {[%clk 0:03:01]}  c6 {[%clk 0:02:58]} 4. e3 {[%clk 0:03:01]}  Bf5 {[%clk 0:02:56]} 5. Bd3 {[%clk 0:03:01]}  Bg6 {[%clk 0:02:53]} 6. O-O {[%clk 0:03:01]}  e6 {[%clk 0:02:54]} 7. Nc3 {[%clk 0:03:01]}  Nbd7 {[%clk 0:02:52]} 8. Re1 {[%clk 0:03:01]}  Ne4 {[%clk 0:02:52]} 9. Bxe4 {[%clk 0:02:56]}  dxe4 {[%clk 0:02:52]} 10. Nd2 {[%clk 0:02:57]}  f5 {[%clk 0:02:40]} 11. f3 {[%clk 0:02:56]}  exf3 {[%clk 0:02:29]} 12. Nxf3 {[%clk 0:02:53]}  Bd6 {[%clk 0:02:29]} 13. Qb3 {[%clk 0:02:48]}  Qb6 {[%clk 0:02:15]} 14. Qc2 {[%clk 0:02:29]}  Qc7 {[%clk 0:02:01]} 15. c5 {[%clk 0:02:26]}  Be7 {[%clk 0:02:01]} 16. Qb3 {[%clk 0:02:25]}  Bf7 {[%clk 0:02:01]} 17. e4 {[%clk 0:02:20]}  e5 {[%clk 0:01:54]} 18. Qd1 {[%clk 0:01:36]}  exd4 {[%clk 0:01:53]} 19. Nxd4 {[%clk 0:01:37]}  O-O-O {[%clk 0:01:46]} 20. Nxf5 {[%clk 0:01:31]}  Bxc5+ {[%clk 0:01:44]} 21. Be3 {[%clk 0:01:25]}  g6 {[%clk 0:01:42]} 22. Ng3 {[%clk 0:01:14]}  Ne5 {[%clk 0:01:40]} 23. Bxc5 {[%clk 0:00:38]}  Rxd1 {[%clk 0:01:39]} 24. Raxd1 {[%clk 0:00:39]}  Rd8 {[%clk 0:01:38]} 25. Rxd8+ {[%clk 0:00:38]}  Qxd8 {[%clk 0:01:39]} 26. Rd1 {[%clk 0:00:37]}  Qg5 {[%clk 0:01:35]} 27. Bxa7 {[%clk 0:00:34]}  h5 {[%clk 0:01:29]} 28. Bb6 {[%clk 0:00:13]}  Nd7 {[%clk 0:01:28]} 29. Bf2 {[%clk 0:00:13]}  h4 {[%clk 0:01:28]} 30. Nge2 {[%clk 0:00:12]}  h3 {[%clk 0:01:28]} 31. g3 {[%clk 0:00:12]}  Qg4 {[%clk 0:01:25]} 32. Nd4 {[%clk 0:00:05]}  Ne5 {[%clk 0:01:25]} 33. Rd2 {[%clk 0:00:02]}  Bc4 {[%clk 0:01:14]} 34. Be3 {[%clk 0:00:02]}  Nf3+ {[%clk 0:01:09]} 35. Kf2 {[%clk 0:00:00]}  Nxh2 {[%clk 0:01:06]} 0-1


[Site "https://www.chess.com"]